bitfinex/quotes_BTCUSD_20240811
["timestamp","ask_amount","ask_price","bid_price","bid_amount"]
[1723335915965,0.18960473,61190.0,61181.0,0.0009141]
[1723335915966,0.26234192,61182.0,61181.0,0.0009141]
[1723335916170,0.483437,61182.0,61181.0,0.0009141]
[1723335916383,0.49116187,61182.0,61181.0,0.0009141]
[1723335917905,0.14792487,61182.0,61181.0,0.0009141]
[1723335918110,0.14792487,61182.0,61181.0,0.1153281]
[1723335918287,0.14792487,61182.0,61181.0,0.1173281]
[1723335918515,0.14792487,61182.0,61181.0,0.0009141]
[1723335918632,0.26233687,61182.0,61181.0,0.0009141]
[1723335918829,0.26233687,61182.0,61181.0,0.0039141]
[1723335918830,0.71998687,61182.0,61181.0,0.0039141]
[1723335919028,0.49116187,61182.0,61181.0,0.0009141]
[1723335919355,0.49516187,61182.0,61181.0,0.0039141]
[1723335919724,0.49516187,61182.0,61181.0,0.0009141]
[1723335919850,0.49116187,61182.0,61181.0,0.0039141]
[1723335920675,0.26233687,61182.0,61181.0,0.0039141]
[1723335920894,0.49116187,61182.0,61181.0,0.0039141]
[1723335921091,0.71998687,61182.0,61181.0,0.0039141]
[1723335921286,0.72298687,61182.0,61181.0,0.0039141]
[1723335921672,0.71998687,61182.0,61181.0,0.0009141]
[1723335922099,0.72298687,61182.0,61181.0,0.0029141]
[1723335922684,0.88680179,61182.0,61181.0,0.0029141]
[1723335924653,1.28547714,61182.0,61181.0,0.0029141]
[1723335925237,1.21562679,61182.0,61181.0,0.0029141]
[1723335926053,1.94562679,61182.0,61181.0,0.0029141]
[1723335926479,1.94562679,61182.0,61181.0,0.0009141]
[1723335926802,1.94762679,61182.0,61181.0,0.0009141]
[1723335927766,1.94462679,61182.0,61181.0,0.0009141]
[1723335927968,2.11577649,61182.0,61181.0,0.0019141]
[1723335929399,1.95162679,61182.0,61181.0,0.0019141]
[1723335929963,2.19045179,61182.0,61181.0,0.0019141]
[1723335930259,2.06045179,61182.0,61181.0,0.0019141]
[1723335930589,2.07045179,61182.0,61181.0,0.0019141]
[1723335930786,0.969592,61174.0,61173.0,0.0009141]
[1723335931046,2.17416192,61174.0,61173.0,0.0009141]
[1723335931202,2.3016332,61174.0,61173.0,0.0009141]
[1723335931638,2.2816332,61174.0,61173.0,0.0009141]
[1723335931841,2.3016332,61174.0,61173.0,0.0009141]
[1723335932071,2.3086332,61174.0,61173.0,0.0019141]
[1723335932286,2.2886332,61174.0,61173.0,0.0019141]
[1723335932532,2.2856332,61174.0,61173.0,0.0019141]
[1723335932689,2.37130747,61174.0,61173.0,0.0019141]
[1723335932898,2.37830747,61174.0,61173.0,0.0029141]
[1723335933099,2.2926332,61174.0,61173.0,0.0029141]
[1723335933298,2.2926332,61174.0,61173.0,0.0019141]
[1723335933299,2.2886332,61174.0,61173.0,0.0019141]
[1723335934167,2.2716332,61174.0,61173.0,0.0009141]
[1723335934337,2.2905984,61174.0,61173.0,0.0009141]
[1723335934540,2.2945984,61174.0,61173.0,0.0019141]
[1723335935060,2.4592469,61174.0,61173.0,0.0029141]
[1723335935401,2.4312469,61174.0,61173.0,0.0009141]
[1723335935639,2.4352469,61174.0,61173.0,0.0019141]
[1723335935849,2.4492469,61174.0,61173.0,0.0029141]
[1723335936866,2.4592469,61174.0,61173.0,0.0029141]
[1723335937183,2.4752469,61174.0,61173.0,0.0009141]
[1723335937366,2.4412469,61174.0,61173.0,0.0009141]
[1723335937565,2.4412469,61174.0,61173.0,0.0019141]
[1723335937566,2.4552469,61174.0,61173.0,0.0019141]
[1723335937973,2.4552469,61174.0,61173.0,0.0009141]
[1723335938181,2.4412469,61174.0,61173.0,0.0009141]
[1723335938376,2.4592469,61174.0,61173.0,0.0029141]
[1723335938523,2.4552469,61174.0,61173.0,0.0019141]
[1723335938717,2.4412469,61174.0,61173.0,0.0009141]
[1723335938946,2.4652469,61174.0,61173.0,0.0019141]
[1723335939157,2.4552469,61174.0,61173.0,0.0019141]
[1723335939607,2.4592469,61174.0,61173.0,0.0029141]
[1723335939847,2.4752469,61174.0,61173.0,0.0019141]
[1723335940263,2.4592469,61174.0,61173.0,0.0029141]
[1723335940432,2.4492469,61174.0,61173.0,0.0019141]
[1723335940664,2.2845984,61174.0,61173.0,0.0019141]
[1723335940865,2.2985984,61174.0,61173.0,0.0029141]
[1723335941273,2.0557434,61174.0,61173.0,0.0019141]
[1723335941473,2.0557434,61174.0,61173.0,0.0009141]
[1723335941474,2.0517434,61174.0,61173.0,0.0009141]
[1723335941648,2.0517434,61174.0,61173.0,0.0019141]
[1723335941848,2.0697434,61174.0,61173.0,0.0029141]
[1723335942009,1.0000232,61174.0,61173.0,0.0029141]
[1723335942204,0.9820232,61174.0,61173.0,0.0009141]
[1723335942609,0.9372232,61174.0,61173.0,0.0029141]
[1723335942814,0.9372232,61174.0,61173.0,0.0019141]
[1723335942815,0.9332232,61174.0,61173.0,0.0019141]
[1723335943287,0.9372232,61174.0,61173.0,0.0029141]
[1723335943701,0.9232232,61174.0,61173.0,0.0019141]
[1723335944136,1.43703962,61174.0,61173.0,0.0029141]
[1723335944533,2.22780045,61174.0,61173.0,0.0009141]
[1723335944816,2.23180045,61174.0,61173.0,0.0029141]
[1723335945043,2.24080045,61174.0,61173.0,0.0019141]
[1723335945420,2.24180045,61174.0,61173.0,0.0019141]
[1723335945622,2.23180045,61174.0,61173.0,0.0019141]
[1723335945816,2.24980045,61174.0,61173.0,0.0019141]
[1723335946028,2.25380045,61174.0,61173.0,0.0029141]
[1723335946219,2.48294854,61174.0,61173.0,0.0029141]
[1723335946445,2.50294854,61174.0,61173.0,0.0029141]
[1723335946887,2.73180851,61174.0,61173.0,0.0029141]
[1723335947094,0.114473,61150.0,61148.0,0.0009152]
[1723335947308,0.30994,61152.0,61148.0,0.0009152]
[1723335947309,0.114474,61149.0,61148.0,0.0009152]
[1723335947505,0.35080139,61149.0,61148.0,0.0009152]
[1723335948646,0.12185339,61149.0,61148.0,0.0009152]
[1723335949106,0.12185339,61149.0,61148.0,0.0079152]
[1723335949332,0.12185339,61149.0,61148.0,0.0089152]
[1723335950279,0.00737939,61149.0,61148.0,0.0089152]
[1723335950809,0.12182182,61149.0,61148.0,0.0089152]
[1723335951054,0.00734782,61149.0,61148.0,0.0089152]
[1723335951494,0.114471,61151.0,61148.0,0.0089152]
[1723335951622,0.00734806,61149.0,61148.0,0.0089152]
[1723335952204,0.00732289,61149.0,61148.0,0.0089152]
[1723335952356,0.00732289,61149.0,61148.0,0.0009152]
[1723335952513,0.114471,61151.0,61148.0,0.0009152]
[1723335952728,0.00732289,61149.0,61148.0,0.0009152]
[1723335952946,0.115471,61151.0,61148.0,0.0009152]
[1723335953180,0.00732289,61149.0,61148.0,0.0009152]
[1723335953384,0.001,61149.0,61148.0,0.0009152]
[1723335953596,0.00832461,61149.0,61148.0,0.0009152]
[1723335953791,0.001,61149.0,61148.0,0.0009152]
[1723335953998,0.00832289,61149.0,61148.0,0.0009152]
[1723335954199,0.001,61149.0,61148.0,0.0009152]
[1723335954406,0.00832289,61149.0,61148.0,0.0009152]
[1723335954614,0.001,61149.0,61148.0,0.0019152]
[1723335955184,0.00832289,61149.0,61148.0,0.0019152]
[1723335955514,0.00832461,61149.0,61148.0,0.0019152]
[1723335956974,0.42824661,61149.0,61148.0,0.0019152]
[1723335957182,0.65719461,61149.0,61148.0,0.0019152]
[1723335957385,0.42824661,61149.0,61148.0,0.0019152]
[1723335957804,0.71789461,61149.0,61148.0,0.0019152]
[1723335958124,0.48894661,61149.0,61148.0,0.0019152]
[1723335959683,0.42824661,61149.0,61148.0,0.0019152]
[1723335960210,0.35174661,61149.0,61148.0,0.0019152]
[1723335961054,0.51556153,61149.0,61148.0,0.0019152]
[1723335961457,0.84426337,61149.0,61148.0,0.0019152]
[1723335961814,1.10002115,61149.0,61148.0,0.0019152]
[1723335962016,1.96966915,61149.0,61148.0,0.0019152]
[1723335962667,0.114506,61132.0,61131.0,0.009252]
[1723335962866,0.3508211,61132.0,61131.0,0.009252]
[1723335963069,0.5300211,61132.0,61131.0,0.009252]
[1723335963291,0.7590331,61132.0,61131.0,0.009252]
[1723335963509,0.2218091,61132.0,61131.0,0.009252]
[1723335963757,0.1073031,61132.0,61131.0,0.009252]
[1723335964332,0.1073031,61132.0,61131.0,0.074552]
[1723335964533,0.0073031,61132.0,61131.0,0.074552]
[1723335964852,0.1133031,61132.0,61131.0,0.075552]
[1723335965289,0.1133031,61132.0,61131.0,0.077552]
[1723335965536,0.0133031,61132.0,61131.0,0.19206]
[1723335965746,0.0073031,61132.0,61131.0,0.728592]
[1723335965918,0.0073031,61132.0,61131.0,0.729592]
[1723335965919,0.007,61132.0,61131.0,0.729592]
[1723335966147,0.007,61132.0,61131.0,0.727592]
[1723335966501,0.007,61132.0,61131.0,0.728592]
[1723335966707,0.007,61132.0,61131.0,0.727592]
[1723335967040,0.007,61132.0,61131.0,0.729592]
[1723335967168,0.1,61139.0,61136.0,0.228997]
[1723335967375,0.1,61139.0,61137.0,0.1448]
[1723335967620,0.11449,61141.0,61137.0,0.1448]
[1723335968036,0.1,61140.0,61137.0,0.1448]
[1723335968817,0.1,61140.0,61137.0,0.1458]
[1723335969203,0.103,61140.0,61137.0,0.1458]
[1723335969423,0.003,61140.0,61139.0,0.114493]
[1723335969624,0.003,61140.0,61139.0,0.572465]
[1723335969829,0.003,61140.0,61139.0,0.343479]
[1723335970866,0.013,61140.0,61139.0,0.343479]
[1723335971296,0.003,61140.0,61139.0,0.343479]
[1723335971788,0.002,61140.0,61139.0,0.343479]
[1723335971983,0.21448,61146.0,61139.0,0.228986]
[1723335972208,0.21448,61146.0,61141.0,0.114488]
[1723335973574,0.21648,61146.0,61141.0,0.114488]
[1723335973819,0.102,61146.0,61140.0,0.228982]
[1723335974033,0.002,61146.0,61142.0,0.114486]
[1723335974245,0.011,61146.0,61142.0,0.114486]
[1723335974678,0.1,61146.0,61142.0,0.114486]
[1723335974871,0.109,61146.0,61142.0,0.114486]
[1723335975078,0.111,61146.0,61142.0,0.114486]
[1723335975287,0.109,61146.0,61143.0,0.114485]
[1723335975491,0.1,61146.0,61143.0,0.114485]
[1723335975706,0.111,61146.0,61143.0,0.114485]
[1723335976554,0.009,61146.0,61143.0,0.114485]
[1723335976956,0.12348,61146.0,61142.0,0.001]
[1723335977372,0.12348,61146.0,61137.0,0.373791]
[1723335977373,0.237961,61146.0,61137.0,0.373791]
[1723335977578,0.114484,61144.0,61140.0,0.114491]
[1723335977777,0.114484,61144.0,61143.0,0.001]
[1723335978096,0.114484,61144.0,61140.0,0.114491]
[1723335978942,0.114484,61144.0,61143.0,0.001]
[1723335979118,0.114484,61144.0,61140.0,0.114491]
[1723335979321,0.120484,61144.0,61140.0,0.115491]
[1723335979518,0.006,61144.0,61140.0,0.116491]
[1723335980104,0.00725282,61143.0,61140.0,0.116491]
[1723335980697,0.00725282,61143.0,61141.0,0.114489]
[1723335981821,0.114482,61145.0,61143.0,0.001]
[1723335981976,0.006,61144.0,61143.0,0.001]
[1723335982338,0.115312,61146.0,61141.0,0.116489]
[1723335982541,0.115312,61146.0,61141.0,0.114489]
[1723335982743,0.005,61143.0,61142.0,0.114487]
[1723335983163,0.005,61143.0,61139.0,0.228984]
[1723335983367,0.005,61143.0,61141.0,0.114488]
[1723335983652,0.005,61143.0,61142.0,0.114487]
[1723335984053,0.115312,61146.0,61142.0,0.114487]
[1723335984490,0.123312,61146.0,61142.0,0.114487]
[1723335984690,0.123312,61146.0,61141.0,0.003]
[1723335984691,0.008832,61146.0,61141.0,0.003]
[1723335984891,0.000832,61146.0,61145.0,0.343444]
[1723335985090,0.000832,61146.0,61145.0,0.482244]
[1723335985289,0.009832,61146.0,61145.0,0.482244]
[1723335985690,0.008832,61146.0,61145.0,0.482244]
[1723335985892,0.000832,61146.0,61145.0,0.482244]
[1723335986492,0.000832,61146.0,61145.0,0.711207]
[1723335987072,0.001832,61146.0,61145.0,0.711207]
[1723335987494,0.002832,61146.0,61145.0,0.711207]
[1723335987864,0.000832,61146.0,61145.0,0.711207]
[1723335988062,0.002832,61146.0,61145.0,0.711207]
[1723335988272,0.002832,61146.0,61145.0,0.716207]
[1723335988423,0.000832,61146.0,61145.0,0.716207]
[1723335988630,0.000832,61146.0,61145.0,0.711207]
[1723335988804,0.001832,61146.0,61145.0,0.711207]
[1723335989227,0.001832,61146.0,61145.0,0.717207]
[1723335989647,0.001832,61146.0,61145.0,0.488244]
[1723335989998,0.001832,61146.0,61145.0,0.717207]
[1723335990473,0.001832,61146.0,61145.0,0.120481]
[1723335990595,0.424872,61146.0,61145.0,0.006]
[1723335990996,0.43220496,61146.0,61145.0,0.006]
[1723335991414,0.114486,61143.0,61138.0,0.1154092]
[1723335991824,0.00732832,61142.0,61138.0,0.1154092]
[1723335992250,0.00732832,61142.0,61139.0,0.114492]
[1723335992991,0.00732832,61142.0,61138.0,0.0029152]
[1723335992992,0.00732832,61142.0,61138.0,0.0079152]
[1723335993196,0.409479,61139.0,61138.0,0.0079152]
[1723335993557,0.41680384,61139.0,61138.0,0.0079152]
[1723335994015,0.41680384,61139.0,61138.0,0.0059152]
[1723335994602,0.18781784,61139.0,61138.0,0.0009152]
[1723335995245,0.00732484,61139.0,61138.0,0.0019152]
[1723335995648,0.00832484,61139.0,61138.0,0.0099152]
[1723335995819,0.12281784,61139.0,61138.0,0.0099152]
[1723336000479,0.00832484,61139.0,61138.0,0.0099152]
[1723336001970,0.00832484,61139.0,61138.0,0.1244102]
[1723336002172,0.00832484,61139.0,61138.0,0.1865102]
[1723336003127,0.00832484,61139.0,61138.0,0.4155002]
[1723336003540,0.00832484,61139.0,61138.0,0.1865102]
[1723336006073,0.00832484,61139.0,61138.0,0.4155002]
[1723336006274,0.00832484,61139.0,61138.0,0.6444902]
[1723336006468,0.00832484,61139.0,61138.0,0.9484802]
[1723336006652,0.001,61139.0,61138.0,0.9484802]
[1723336006852,0.001,61139.0,61138.0,0.7194902]
[1723336018047,0.001,61139.0,61138.0,0.3534002]
[1723336018255,0.001832,61139.0,61138.0,0.3534002]
[1723336018454,0.001832,61139.0,61138.0,0.1244102]
[1723336018691,0.00997151,61139.0,61138.0,0.1244102]
[1723336019157,0.00997151,61139.0,61138.0,0.3534002]
[1723336019975,0.00997151,61139.0,61138.0,0.1244102]
[1723336020180,0.064032,61139.0,61138.0,0.1244102]
[1723336020384,0.07217151,61139.0,61138.0,0.1244102]
[1723336021112,0.07217151,61139.0,61138.0,0.0099152]
[1723336022756,0.07217151,61139.0,61138.0,0.1244102]
[1723336023177,0.064032,61139.0,61138.0,0.1244102]
[1723336023634,0.072173,61139.0,61138.0,0.1244102]
[1723336023796,0.009973,61139.0,61138.0,0.3534002]
[1723336023993,0.009973,61139.0,61138.0,0.5823902]
[1723336024235,0.001832,61139.0,61138.0,0.3534002]
[1723336027152,0.001832,61139.0,61138.0,0.5823902]
[1723336028244,0.001832,61139.0,61138.0,0.3534002]
[1723336029335,0.001832,61139.0,61138.0,0.5823902]
[1723336030314,0.001832,61139.0,61138.0,0.9562802]
[1723336030527,0.001832,61139.0,61138.0,0.7262902]
[1723336030931,0.001832,61139.0,61138.0,0.7272902]
[1723336031137,0.000832,61139.0,61138.0,0.7192902]
[1723336031344,0.000832,61139.0,61138.0,0.7182902]
[1723336031539,0.000832,61139.0,61138.0,0.9542802]
[1723336031540,0.001832,61139.0,61138.0,0.9542802]
[1723336031741,0.000832,61139.0,61138.0,0.9472802]
[1723336032311,0.000832,61139.0,61138.0,0.9612802]
[1723336032312,0.001832,61139.0,61138.0,0.9612802]
[1723336032744,0.002832,61139.0,61138.0,0.9672802]
[1723336033222,0.001832,61139.0,61138.0,0.9612802]
[1723336033599,0.001832,61139.0,61138.0,0.7322902]
[1723336033600,0.002832,61139.0,61138.0,0.7392902]
[1723336034249,0.002832,61139.0,61138.0,0.6606902]
[1723336037218,0.002832,61139.0,61138.0,0.5943902]
[1723336038271,0.002832,61139.0,61138.0,0.8233802]
[1723336038401,0.002832,61139.0,61138.0,0.5943902]
[1723336039225,0.002832,61139.0,61138.0,0.8233802]
[1723336039404,0.002832,61139.0,61138.0,0.5943902]
[1723336043039,0.002832,61139.0,61138.0,0.8233802]
[1723336043237,0.002832,61139.0,61138.0,0.5943902]
[1723336044913,0.002832,61139.0,61138.0,0.8233802]
[1723336045277,0.002832,61139.0,61138.0,0.8995802]
[1723336048282,0.002832,61139.0,61138.0,1.06339512]
[1723336048502,0.002832,61139.0,61138.0,1.08639512]
[1723336051184,0.002832,61139.0,61138.0,0.3654002]
[1723336051568,0.01187532,61139.0,61138.0,0.1364102]
[1723336051773,0.066232,61139.0,61138.0,0.1364102]
[1723336052007,0.07529945,61139.0,61138.0,0.1364102]
[1723336052183,0.15409945,61139.0,61138.0,0.1364102]
[1723336052409,0.15409945,61139.0,61138.0,0.3654002]
[1723336053924,0.15409945,61139.0,61138.0,0.1364102]
[1723336054508,0.15409945,61139.0,61138.0,0.0219152]
[1723336056714,0.15409945,61139.0,61138.0,0.1364102]
[1723336056924,0.72656445,61139.0,61138.0,0.0219152]
[1723336057111,1.84051449,61139.0,61138.0,0.0219152]
[1723336057311,1.36544103,61139.0,61138.0,0.0219152]
[1723336057756,1.54774103,61139.0,61138.0,0.0219152]
[1723336057956,1.69495926,61139.0,61138.0,0.0219152]
[1723336058162,2.18774103,61139.0,61138.0,0.0219152]
[1723336058314,2.17774103,61139.0,61138.0,0.0219152]
[1723336058492,2.17774103,61139.0,61138.0,0.0079152]
[1723336058493,2.17674103,61139.0,61138.0,0.0079152]
[1723336058693,2.17674103,61139.0,61138.0,0.0009152]
[1723336058694,2.18579093,61139.0,61138.0,0.0009152]
[1723336058898,2.18579093,61139.0,61138.0,0.0029152]
[1723336059102,2.18479093,61139.0,61138.0,0.0029152]
[1723336059307,2.20279093,61139.0,61138.0,0.0039152]
[1723336059507,2.20279093,61139.0,61138.0,0.0019152]
[1723336059718,2.14825092,61139.0,61138.0,0.0019152]
[1723336060060,1.45846324,61139.0,61138.0,0.0019152]
[1723336060272,1.18046822,61139.0,61138.0,0.0019152]
[1723336060626,1.18045344,61139.0,61138.0,0.0019152]
[1723336060829,1.08191779,61139.0,61138.0,0.0019152]
[1723336061035,1.15558588,61139.0,61138.0,0.0019152]
[1723336061584,1.16558402,61139.0,61138.0,0.0029152]
[1723336061761,1.14458402,61139.0,61138.0,0.0009152]
[1723336061957,1.15525953,61139.0,61138.0,0.0019152]
[1723336062281,1.1162705,61139.0,61138.0,0.0029152]
[1723336062862,0.61657845,61139.0,61138.0,0.0029152]
[1723336063469,1.10681527,61139.0,61138.0,0.0029152]
[1723336063795,0.99837937,61139.0,61138.0,0.0019152]
[1723336064709,0.98837937,61139.0,61138.0,0.0009152]
[1723336065036,0.99837937,61139.0,61138.0,0.0019152]
[1723336065209,1.10380317,61139.0,61138.0,0.0029152]
[1723336065386,1.09380317,61139.0,61138.0,0.0019152]
[1723336065589,0.85681717,61139.0,61138.0,0.0009152]
[1723336065910,0.87481717,61139.0,61138.0,0.0029152]
[1723336066278,0.87481717,61139.0,61138.0,0.0019152]
[1723336066279,0.86481717,61139.0,61138.0,0.0019152]
[1723336066627,0.86581717,61139.0,61138.0,0.0019152]
[1723336067109,0.77539337,61139.0,61138.0,0.0029152]
[1723336067916,0.76639337,61139.0,61138.0,0.0019152]
[1723336068122,0.75939337,61139.0,61138.0,0.0009152]
[1723336068325,0.76939337,61139.0,61138.0,0.0019152]
[1723336068501,0.63519337,61139.0,61138.0,0.0029152]
[1723336068703,0.61719337,61139.0,61138.0,0.0009152]
[1723336068904,0.22439245,61139.0,61138.0,0.0009152]
[1723336069103,0.24239245,61139.0,61138.0,0.0029152]
[1723336069530,0.22439245,61139.0,61138.0,0.0009152]
[1723336069907,0.47137845,61139.0,61138.0,0.0029152]
[1723336071119,0.46137845,61139.0,61138.0,0.0019152]
[1723336071401,0.46337845,61139.0,61138.0,0.0019152]
[1723336071718,0.70036445,61139.0,61138.0,0.0029152]
[1723336071940,1.00187937,61139.0,61138.0,0.0019152]
[1723336072157,1.00187937,61139.0,61138.0,0.0009152]
[1723336072158,0.99187937,61139.0,61138.0,0.0009152]
[1723336072407,1.10672022,61139.0,61138.0,0.0029152]
[1723336072596,1.09872022,61139.0,61138.0,0.0019152]
[1723336073011,1.09672022,61139.0,61138.0,0.0019152]
[1723336074059,1.09687987,61139.0,61138.0,0.0019152]
[1723336074208,1.10687987,61139.0,61138.0,0.0029152]
[1723336074411,1.32786587,61139.0,61138.0,0.0019152]
[1723336074631,2.15896532,61139.0,61138.0,0.0029152]
[1723336074855,2.1734402,61139.0,61138.0,0.0019152]
[1723336075195,2.1734402,61139.0,61131.0,0.009252]
[1723336075196,0.956442,61132.0,61131.0,0.009252]
[1723336075359,2.31041588,61132.0,61131.0,0.009252]
[1723336075556,2.58396368,61132.0,61131.0,0.009252]
[1723336075933,2.41981398,61132.0,61131.0,0.009252]
[1723336077583,2.33681348,61132.0,61131.0,0.009252]
[1723336077880,2.44780387,61132.0,61131.0,0.010252]
[1723336078103,2.35081348,61132.0,61131.0,0.010252]
[1723336078240,2.44780136,61132.0,61131.0,0.010252]
[1723336078441,2.44780136,61132.0,61117.0,0.009163]
[1723336078442,1.060707,61123.0,61117.0,0.009163]
[1723336078660,1.60432192,61123.0,61117.0,0.009163]
[1723336078880,1.48240953,61123.0,61117.0,0.009163]
[1723336079036,1.38461675,61123.0,61117.0,0.009163]
[1723336079249,0.92652475,61123.0,61117.0,0.009163]
[1723336079462,0.69747875,61123.0,61117.0,0.009163]
[1723336079640,0.59244366,61123.0,61117.0,0.009163]
[1723336080042,0.70696666,61123.0,61117.0,0.009163]
[1723336080266,0.59244366,61123.0,61117.0,0.009163]
[1723336081071,0.43414366,61123.0,61117.0,0.009163]
[1723336081271,0.43414366,61123.0,61122.0,0.010152]
[1723336081272,0.13534083,61123.0,61122.0,0.010152]
[1723336081501,0.12334083,61123.0,61122.0,0.009152]
[1723336081690,0.10934083,61123.0,61122.0,0.009152]
[1723336081835,0.12134083,61123.0,61122.0,0.010152]
[1723336082039,0.12334083,61123.0,61122.0,0.009152]
[1723336082435,0.12134083,61123.0,61122.0,0.010152]
[1723336082754,0.00934083,61123.0,61122.0,0.300002]
[1723336082953,0.02334083,61123.0,61122.0,0.492827]
[1723336083125,0.026,61123.0,61122.0,0.493827]
[1723336084058,0.012,61123.0,61122.0,0.493827]
[1723336084292,0.012,61123.0,61122.0,0.492827]
[1723336084478,0.1,61134.0,61125.0,0.114518]
[1723336084693,0.1,61134.0,61122.0,0.379302]
[1723336084694,0.1,61134.0,61123.0,0.229044]
[1723336084872,0.00928635,61133.0,61122.0,0.150252]
[1723336085094,0.00928635,61133.0,61124.0,0.229042]
[1723336085217,0.1,61136.0,61127.0,0.114514]
[1723336085412,0.26976418,61135.0,61127.0,0.114514]
[1723336085671,0.19666059,61134.0,61127.0,0.114514]
[1723336086002,0.00928635,61133.0,61127.0,0.114514]
[1723336086212,0.02328635,61133.0,61127.0,0.114514]
[1723336086686,0.02328635,61133.0,61125.0,0.229038]
[1723336086889,0.02328635,61133.0,61127.0,0.22903]
[1723336087096,0.02328635,61133.0,61131.0,0.114507]
[1723336087298,0.00928635,61133.0,61131.0,0.114507]
[1723336087501,0.1767,61137.0,61131.0,0.114507]
[1723336087701,0.1767,61137.0,61133.0,0.114504]
[1723336087702,0.014,61134.0,61133.0,0.114504]
[1723336087869,0.02328751,61134.0,61133.0,0.192804]
[1723336088244,0.10597936,61134.0,61133.0,0.421812]
[1723336088379,0.00928751,61134.0,61133.0,0.65082]
[1723336088729,0.000832,61139.0,61138.0,0.483585]
[1723336088866,0.09752151,61139.0,61138.0,0.483585]
[1723336089292,0.000832,61139.0,61138.0,0.483585]
[1723336089534,0.000832,61139.0,61138.0,0.254595]
[1723336090201,0.000832,61139.0,61138.0,0.483585]
[1723336090727,0.014832,61139.0,61138.0,0.484585]
[1723336091248,0.014832,61139.0,61138.0,0.483585]
[1723336091249,0.000832,61139.0,61138.0,0.483585]
[1723336091515,0.018832,61139.0,61138.0,0.714575]
[1723336091730,0.010832,61139.0,61138.0,0.713575]
[1723336092082,0.015832,61139.0,61138.0,0.713575]
[1723336094685,0.015832,61139.0,61138.0,0.573475]
[1723336095117,0.015832,61139.0,61138.0,0.001]
[1723336095653,0.02529404,61139.0,61138.0,0.001]
[1723336095795,0.12529404,61139.0,61138.0,0.001]
[1723336096979,0.23978704,61139.0,61138.0,0.001]
[1723336097514,0.12529404,61139.0,61138.0,0.001]
[1723336097909,0.23978704,61139.0,61138.0,0.001]
[1723336098112,0.63258796,61139.0,61138.0,0.001]
[1723336098319,0.57590196,61139.0,61138.0,0.001]
[1723336099323,0.80488796,61139.0,61138.0,0.001]
[1723336100249,1.23512399,61139.0,61138.0,0.001]
[1723336100456,1.29982399,61139.0,61138.0,0.001]
[1723336100859,1.17627396,61139.0,61138.0,0.001]
[1723336104145,1.40525996,61139.0,61138.0,0.001]
[1723336104351,2.14417524,61139.0,61138.0,0.001]
[1723336105602,2.13417524,61139.0,61138.0,0.001]
[1723336106755,2.08525996,61139.0,61138.0,0.001]
[1723336106959,2.13420805,61139.0,61138.0,0.001]
[1723336107339,1.90522205,61139.0,61138.0,0.001]
[1723336111604,1.90522035,61139.0,61138.0,0.001]
[1723336112204,2.00179765,61139.0,61138.0,0.001]
[1723336114933,1.95285126,61139.0,61138.0,0.001]
[1723336115457,1.90522303,61139.0,61138.0,0.001]
[1723336115702,1.95290904,61139.0,61138.0,0.001]
[1723336115885,2.00186022,61139.0,61138.0,0.001]
[1723336116084,2.12433379,61139.0,61138.0,0.001]
[1723336116435,2.00186022,61139.0,61138.0,0.001]
[1723336116635,1.95290904,61139.0,61138.0,0.001]
[1723336118934,1.95239596,61139.0,61138.0,0.001]
[1723336119352,1.88769596,61139.0,61138.0,0.001]
[1723336119548,1.71387396,61139.0,61138.0,0.001]
[1723336119749,1.81001288,61139.0,61138.0,0.001]
[1723336123701,1.70661288,61139.0,61138.0,0.001]
[1723336124572,1.75556248,61139.0,61138.0,0.001]
[1723336125421,1.78003728,61139.0,61138.0,0.001]
[1723336126208,1.78003728,61139.0,61138.0,0.0799]
[1723336126209,0.90136978,61139.0,61138.0,0.0799]
[1723336126411,0.12136978,61139.0,61138.0,0.652375]
[1723336126609,0.12136978,61139.0,61138.0,0.718575]
[1723336126610,0.02529404,61139.0,61138.0,0.718575]
[1723336127064,0.015832,61139.0,61138.0,0.718575]
[1723336127261,0.010832,61139.0,61138.0,0.718575]
[1723336127468,0.010832,61139.0,61138.0,0.947565]
[1723336127688,0.010832,61139.0,61138.0,0.949565]
[1723336127960,0.010832,61139.0,61138.0,0.947565]
[1723336128519,0.001832,61139.0,61138.0,0.951565]
[1723336128660,0.010832,61139.0,61138.0,0.947565]
[1723336128861,0.011832,61139.0,61138.0,0.956565]
[1723336129142,0.001832,61139.0,61138.0,0.955565]
[1723336129419,0.002832,61139.0,61138.0,0.961565]
[1723336130155,0.002832,61139.0,61138.0,0.952565]
[1723336130357,0.001832,61139.0,61138.0,0.952565]
[1723336130960,0.001832,61139.0,61138.0,0.963565]
[1723336131167,0.002832,61139.0,61138.0,0.963565]
[1723336131391,0.001832,61139.0,61138.0,0.952565]
[1723336131756,0.002832,61139.0,61138.0,0.963565]
[1723336132575,0.002832,61139.0,61138.0,0.734575]
[1723336136885,0.002832,61139.0,61138.0,0.724049]
[1723336140434,0.002832,61139.0,61138.0,0.017]
[1723336141278,0.0123173,61139.0,61138.0,0.017]
[1723336141810,0.021459,61139.0,61138.0,0.017]
[1723336142438,0.020459,61139.0,61138.0,0.011]
[1723336142916,0.020459,61139.0,61138.0,0.126495]
[1723336142917,0.026459,61139.0,61138.0,0.126495]
[1723336143123,0.025459,61139.0,61138.0,0.001]
[1723336143719,0.0163173,61139.0,61138.0,0.253395]
[1723336143855,0.0163173,61139.0,61138.0,0.482385]
[1723336144063,0.0163173,61139.0,61138.0,0.711375]
[1723336144285,0.000832,61139.0,61138.0,0.710375]
[1723336144488,0.006832,61139.0,61138.0,0.711375]
[1723336144934,0.006832,61139.0,61138.0,0.710375]
[1723336144935,0.000832,61139.0,61138.0,0.710375]
[1723336145154,0.000832,61139.0,61138.0,0.939365]
[1723336145875,0.004832,61139.0,61138.0,0.941365]
[1723336146301,0.004832,61139.0,61138.0,0.939365]
[1723336146540,0.004832,61139.0,61138.0,0.943365]
[1723336146975,0.004832,61139.0,61138.0,0.939365]
[1723336147181,0.000832,61139.0,61138.0,0.939365]
[1723336147508,0.003832,61139.0,61138.0,0.947365]
[1723336148101,0.001832,61139.0,61138.0,0.947365]
[1723336148232,0.001832,61139.0,61138.0,0.9502802]
[1723336150178,0.000832,61139.0,61138.0,0.7132902]